[Event "Titled Tuesday Blitz June 28 Early 2022"]
[White "Mitrovic, Darko R"]
[Black "Karavade, Eesha"]
[WhiteFideId "927023"]
[BlackFideId "5012600"]
[WhiteElo "2150"]
[BlackElo "2258"]
[Result "0-1"]
[Round "01"]
[TimeControl "180+1"]
[Date "2022.06.28"]
[WhiteClock "0:00:01"]
[BlackClock "0:00:31"]

1. d4 {[%clk 0:02:55]}  Nf6 {[%clk 0:02:58]} 2. c4 {[%clk 0:02:54]}  e6 {[%clk 0:02:58]} 3. Nf3 {[%clk 0:02:53]}  d5 {[%clk 0:02:58]} 4. g3 {[%clk 0:02:52]}  dxc4 {[%clk 0:02:56]} 5. Bg2 {[%clk 0:02:51]}  Nc6 {[%clk 0:02:56]} 6. O-O {[%clk 0:02:50]}  Rb8 {[%clk 0:02:54]} 7. a4 {[%clk 0:02:49]}  a6 {[%clk 0:02:53]} 8. b3 {[%clk 0:02:42]}  cxb3 {[%clk 0:02:50]} 9. Qxb3 {[%clk 0:02:42]}  Be7 {[%clk 0:02:49]} 10. Ba3 {[%clk 0:02:38]}  O-O {[%clk 0:02:45]} 11. e3 {[%clk 0:02:37]}  b5 {[%clk 0:02:37]} 12. Bxe7 {[%clk 0:02:31]}  Qxe7 {[%clk 0:02:37]} 13. axb5 {[%clk 0:02:30]}  axb5 {[%clk 0:02:28]} 14. Nbd2 {[%clk 0:02:22]}  Bd7 {[%clk 0:02:26]} 15. Rfc1 {[%clk 0:02:17]}  Rfc8 {[%clk 0:02:24]} 16. Qc3 {[%clk 0:02:09]}  Nd5 {[%clk 0:02:18]} 17. Qb2 {[%clk 0:01:59]}  Qb4 {[%clk 0:02:17]} 18. Qc2 {[%clk 0:01:54]}  Qe7 {[%clk 0:02:08]} 19. Nb3 {[%clk 0:01:53]}  Ncb4 {[%clk 0:02:02]} 20. Qd2 {[%clk 0:01:50]}  Nc6 {[%clk 0:02:00]} 21. Nc5 {[%clk 0:01:48]}  Be8 {[%clk 0:02:00]} 22. Rab1 {[%clk 0:01:42]}  b4 {[%clk 0:01:57]} 23. Ne1 {[%clk 0:01:37]}  Nc3 {[%clk 0:01:56]} 24. Rb2 {[%clk 0:01:30]}  Rb6 {[%clk 0:01:52]} 25. Ned3 {[%clk 0:01:25]}  Rcb8 {[%clk 0:01:48]} 26. f4 {[%clk 0:01:25]}  h6 {[%clk 0:01:42]} 27. h4 {[%clk 0:01:22]}  Na5 {[%clk 0:01:36]} 28. Qf2 {[%clk 0:01:00]}  Nc4 {[%clk 0:01:33]} 29. Rxb4 {[%clk 0:00:48]}  Rxb4 {[%clk 0:01:32]} 30. Na6 {[%clk 0:00:44]}  Na4 {[%clk 0:01:18]} 31. Naxb4 {[%clk 0:00:40]}  Rxb4 {[%clk 0:01:13]} 32. Nxb4 {[%clk 0:00:37]}  Qxb4 {[%clk 0:01:13]} 33. Bf1 {[%clk 0:00:22]}  Nab6 {[%clk 0:01:12]} 34. Qc2 {[%clk 0:00:15]}  Ba4 {[%clk 0:01:11]} 35. Qc3 {[%clk 0:00:14]}  Qxc3 {[%clk 0:01:10]} 36. Rxc3 {[%clk 0:00:14]}  Bb5 {[%clk 0:01:09]} 37. Bxc4 {[%clk 0:00:13]}  Nxc4 {[%clk 0:01:07]} 38. Kf2 {[%clk 0:00:13]}  c6 {[%clk 0:01:07]} 39. Rc2 {[%clk 0:00:09]}  h5 {[%clk 0:01:07]} 40. Ra2 {[%clk 0:00:09]}  g6 {[%clk 0:01:07]} 41. Ra7 {[%clk 0:00:08]}  Kg7 {[%clk 0:01:06]} 42. Rd7 {[%clk 0:00:08]}  Kf6 {[%clk 0:01:06]} 43. Rc7 {[%clk 0:00:07]}  Nd6 {[%clk 0:01:03]} 44. Rd7 {[%clk 0:00:07]}  Ne4+ {[%clk 0:00:59]} 45. Kf3 {[%clk 0:00:06]}  Nd2+ {[%clk 0:00:59]} 46. Kf2 {[%clk 0:00:06]}  Bc4 {[%clk 0:00:59]} 47. Rc7 {[%clk 0:00:04]}  Bd5 {[%clk 0:00:58]} 48. Ra7 {[%clk 0:00:04]}  Ne4+ {[%clk 0:00:58]} 49. Kg2 {[%clk 0:00:04]}  Kg7 {[%clk 0:00:49]} 50. Ra1 {[%clk 0:00:04]}  f6 {[%clk 0:00:48]} 51. Kh2 {[%clk 0:00:04]}  g5 {[%clk 0:00:48]} 52. Re1 {[%clk 0:00:04]}  gxh4 {[%clk 0:00:44]} 53. gxh4 {[%clk 0:00:04]}  Kg6 {[%clk 0:00:44]} 54. Kh3 {[%clk 0:00:04]}  Kf5 {[%clk 0:00:44]} 55. Rg1 {[%clk 0:00:04]}  Nf2+ {[%clk 0:00:43]} 56. Kg3 {[%clk 0:00:03]}  Ng4 {[%clk 0:00:43]} 57. Ra1 {[%clk 0:00:02]}  Ke4 {[%clk 0:00:43]} 58. Ra8 {[%clk 0:00:02]}  Nxe3 {[%clk 0:00:43]} 59. Rh8 {[%clk 0:00:01]}  Nf5+ {[%clk 0:00:42]} 60. Kh3 {[%clk 0:00:01]}  Kxf4 {[%clk 0:00:42]} 61. Rxh5 {[%clk 0:00:01]}  Bf3 {[%clk 0:00:40]} 62. Rh8 {[%clk 0:00:01]}  Bg4+ {[%clk 0:00:40]} 63. Kg2 {[%clk 0:00:01]}  Nxd4 {[%clk 0:00:39]} 64. Kf2 {[%clk 0:00:01]}  Nf5 {[%clk 0:00:38]} 65. h5 {[%clk 0:00:01]}  Kg5 {[%clk 0:00:37]} 66. h6 {[%clk 0:00:01]}  Nxh6 {[%clk 0:00:37]} 67. Rc8 {[%clk 0:00:02]}  Nf5 {[%clk 0:00:34]} 68. Rxc6 {[%clk 0:00:02]}  e5 {[%clk 0:00:34]} 69. Rc8 {[%clk 0:00:01]}  Nd4 {[%clk 0:00:33]} 70. Rg8+ {[%clk 0:00:01]}  Kf4 {[%clk 0:00:33]} 71. Ke1 {[%clk 0:00:01]}  f5 {[%clk 0:00:32]} 72. Rf8 {[%clk 0:00:01]}  Ke3 {[%clk 0:00:32]} 73. Rg8 {[%clk 0:00:01]}  e4 {[%clk 0:00:31]} 0-1


[Site "https://www.chess.com"]

[Event "Titled Tuesday Blitz June 28 Early 2022"]
[White "Molina, Roberto Junio Brito"]
[Black "Lucas, Arthur"]
[WhiteFideId "2109450"]
[BlackFideId "26093073"]
[WhiteElo "2432"]
[BlackElo "2129"]
[Result "1-0"]
[Round "01"]
[TimeControl "180+1"]
[Date "2022.06.28"]
[WhiteClock "0:00:13"]
[BlackClock "0:00:07"]

1. d4 {[%clk 0:03:00]}  g6 {[%clk 0:02:55]} 2. e4 {[%clk 0:03:00]}  Bg7 {[%clk 0:02:55]} 3. Nc3 {[%clk 0:02:57]}  a6 {[%clk 0:02:55]} 4. h4 {[%clk 0:02:56]}  h6 {[%clk 0:02:55]} 5. h5 {[%clk 0:02:56]}  g5 {[%clk 0:02:56]} 6. f4 {[%clk 0:02:56]}  gxf4 {[%clk 0:02:57]} 7. Bxf4 {[%clk 0:02:56]}  b5 {[%clk 0:02:57]} 8. Nf3 {[%clk 0:02:56]}  d6 {[%clk 0:02:57]} 9. Qd2 {[%clk 0:02:55]}  Nd7 {[%clk 0:02:55]} 10. O-O-O {[%clk 0:02:55]}  c5 {[%clk 0:02:53]} 11. dxc5 {[%clk 0:02:53]}  Nxc5 {[%clk 0:02:54]} 12. e5 {[%clk 0:02:52]}  b4 {[%clk 0:02:29]} 13. Nd5 {[%clk 0:02:51]}  Be6 {[%clk 0:02:18]} 14. exd6 {[%clk 0:02:39]}  exd6 {[%clk 0:02:07]} 15. Bc4 {[%clk 0:02:33]}  Rc8 {[%clk 0:02:04]} 16. Rhe1 {[%clk 0:02:04]}  Bxb2+ {[%clk 0:01:02]} 17. Kxb2 {[%clk 0:01:59]}  Na4+ {[%clk 0:01:02]} 18. Kb3 {[%clk 0:01:33]}  Rxc4 {[%clk 0:01:02]} 19. Kxc4 {[%clk 0:01:29]}  Nb2+ {[%clk 0:00:27]} 20. Kb3 {[%clk 0:01:25]}  Nxd1 {[%clk 0:00:27]} 21. Qxd1 {[%clk 0:01:18]}  Ne7 {[%clk 0:00:20]} 22. Rxe6 {[%clk 0:01:09]}  fxe6 {[%clk 0:00:21]} 23. Nxe7 {[%clk 0:00:40]}  Kxe7 {[%clk 0:00:22]} 24. Nd4 {[%clk 0:00:35]}  Qc7 {[%clk 0:00:11]} 25. Qd3 {[%clk 0:00:23]}  e5 {[%clk 0:00:05]} 26. Nf5+ {[%clk 0:00:22]}  Ke6 {[%clk 0:00:04]} 27. Bd2 {[%clk 0:00:20]}  Rc8 {[%clk 0:00:03]} 28. Ne3 {[%clk 0:00:15]}  Qc6 {[%clk 0:00:02]} 29. g4 {[%clk 0:00:09]}  Kd7 {[%clk 0:00:01]} 30. Bxb4 {[%clk 0:00:08]}  Rb8 {[%clk 0:00:01]} 31. Ka3 {[%clk 0:00:08]}  Kc7 {[%clk 0:00:01]} 32. c4 {[%clk 0:00:06]}  Kb7 {[%clk 0:00:01]} 33. Nd5 {[%clk 0:00:06]}  Ka8 {[%clk 0:00:01]} 34. Qh7 {[%clk 0:00:05]}  Rb7 {[%clk 0:00:01]} 35. Qg8+ {[%clk 0:00:05]}  Rb8 {[%clk 0:00:02]} 36. Qf7 {[%clk 0:00:06]}  Rb7 {[%clk 0:00:02]} 37. Qe8+ {[%clk 0:00:06]}  Rb8 {[%clk 0:00:02]} 38. Qxc6+ {[%clk 0:00:06]}  Rb7 {[%clk 0:00:03]} 39. Nc7+ {[%clk 0:00:06]}  Kb8 {[%clk 0:00:02]} 40. Nxa6+ {[%clk 0:00:07]}  Ka7 {[%clk 0:00:03]} 41. Qxb7+ {[%clk 0:00:07]}  Kxb7 {[%clk 0:00:04]} 42. Bxd6 {[%clk 0:00:07]}  e4 {[%clk 0:00:04]} 43. Be5 {[%clk 0:00:08]}  e3 {[%clk 0:00:05]} 44. Bc3 {[%clk 0:00:08]}  e2 {[%clk 0:00:06]} 45. Be1 {[%clk 0:00:09]}  Kxa6 {[%clk 0:00:07]} 46. Kb3 {[%clk 0:00:09]}  Kb6 {[%clk 0:00:07]} 47. Kc3 {[%clk 0:00:10]}  Kc5 {[%clk 0:00:08]} 48. Kd3 {[%clk 0:00:11]}  Kc6 {[%clk 0:00:05]} 49. Kxe2 {[%clk 0:00:12]}  Kc5 {[%clk 0:00:06]} 50. Kd3 {[%clk 0:00:12]}  Kc6 {[%clk 0:00:07]} 51. Kd4 {[%clk 0:00:13]} 1-0


[Site "https://www.chess.com"]

[Event "Titled Tuesday Blitz June 28 Early 2022"]
[White "Mrudul Dehankar"]
[Black "Gurevich, Dmitry"]
[WhiteFideId "25096990"]
[BlackFideId "2000407"]
[WhiteElo "1766"]
[BlackElo "2506"]
[Result "1-0"]
[Round "01"]
[TimeControl "180+1"]
[Date "2022.06.28"]
[WhiteClock "0:00:04"]
[BlackClock "0:00:04"]

1. e4 {[%clk 0:02:59]}  c5 {[%clk 0:02:59]} 2. Nf3 {[%clk 0:02:59]}  d6 {[%clk 0:02:59]} 3. d4 {[%clk 0:02:59]}  cxd4 {[%clk 0:02:59]} 4. Nxd4 {[%clk 0:02:59]}  Nf6 {[%clk 0:02:59]} 5. Nc3 {[%clk 0:02:59]}  Nc6 {[%clk 0:02:59]} 6. Bg5 {[%clk 0:02:53]}  g6 {[%clk 0:02:54]} 7. Bxf6 {[%clk 0:02:47]}  exf6 {[%clk 0:02:54]} 8. Qd2 {[%clk 0:02:46]}  Bg7 {[%clk 0:02:53]} 9. O-O-O {[%clk 0:02:44]}  O-O {[%clk 0:02:52]} 10. Nxc6 {[%clk 0:02:43]}  bxc6 {[%clk 0:02:52]} 11. Qxd6 {[%clk 0:02:43]}  Qb6 {[%clk 0:02:50]} 12. Bc4 {[%clk 0:02:23]}  Qxf2 {[%clk 0:02:39]} 13. Kb1 {[%clk 0:02:09]}  Bg4 {[%clk 0:02:34]} 14. Rd2 {[%clk 0:01:59]}  Qb6 {[%clk 0:02:32]} 15. Qe7 {[%clk 0:01:16]}  f5 {[%clk 0:02:14]} 16. e5 {[%clk 0:01:14]}  Rab8 {[%clk 0:01:54]} 17. Na4 {[%clk 0:01:01]}  Qa5 {[%clk 0:01:52]} 18. Rd7 {[%clk 0:00:55]}  Qxe5 {[%clk 0:01:27]} 19. Bxf7+ {[%clk 0:00:51]}  Kh8 {[%clk 0:01:25]} 20. Qxe5 {[%clk 0:00:31]}  Bxe5 {[%clk 0:01:24]} 21. h3 {[%clk 0:00:30]}  Bh5 {[%clk 0:01:03]} 22. g4 {[%clk 0:00:26]}  fxg4 {[%clk 0:01:01]} 23. hxg4 {[%clk 0:00:24]}  Bxg4 {[%clk 0:01:01]} 24. Rxa7 {[%clk 0:00:21]}  Bh5 {[%clk 0:00:51]} 25. Bb3 {[%clk 0:00:16]}  Bd4 {[%clk 0:00:45]} 26. Rd7 {[%clk 0:00:15]}  Rbd8 {[%clk 0:00:42]} 27. Rc7 {[%clk 0:00:12]}  Be5 {[%clk 0:00:35]} 28. Rb7 {[%clk 0:00:11]}  Rb8 {[%clk 0:00:30]} 29. Rxb8 {[%clk 0:00:11]}  Rxb8 {[%clk 0:00:29]} 30. Nc5 {[%clk 0:00:11]}  Rd8 {[%clk 0:00:21]} 31. a4 {[%clk 0:00:10]}  Bf3 {[%clk 0:00:16]} 32. Rf1 {[%clk 0:00:09]}  Bg4 {[%clk 0:00:14]} 33. Re1 {[%clk 0:00:08]}  Bd4 {[%clk 0:00:13]} 34. Nd3 {[%clk 0:00:07]}  h5 {[%clk 0:00:09]} 35. Re7 {[%clk 0:00:06]}  h4 {[%clk 0:00:05]} 36. Nf4 {[%clk 0:00:06]}  Bf5 {[%clk 0:00:04]} 37. Be6 {[%clk 0:00:04]} 1-0


[Site "https://www.chess.com"]

[Event "Titled Tuesday Blitz June 28 Early 2022"]
[White "Narayanan, Srinath"]
[Black "Khamdamova, Afruza"]
[WhiteFideId "5018420"]
[BlackFideId "14210444"]
[WhiteElo "2472"]
[BlackElo "1660"]
[Result "1-0"]
[Round "01"]
[TimeControl "180+1"]
[Date "2022.06.28"]
[WhiteClock "0:01:53"]
[BlackClock "0:00:48"]

1. Nf3 {[%clk 0:03:00]}  Nf6 {[%clk 0:02:59]} 2. c4 {[%clk 0:02:59]}  e6 {[%clk 0:02:58]} 3. e3 {[%clk 0:02:57]}  d5 {[%clk 0:02:58]} 4. b3 {[%clk 0:02:58]}  Be7 {[%clk 0:02:55]} 5. Bb2 {[%clk 0:02:57]}  O-O {[%clk 0:02:55]} 6. Be2 {[%clk 0:02:57]}  c5 {[%clk 0:02:54]} 7. O-O {[%clk 0:02:57]}  b6 {[%clk 0:02:54]} 8. cxd5 {[%clk 0:02:57]}  exd5 {[%clk 0:02:54]} 9. d4 {[%clk 0:02:57]}  Bb7 {[%clk 0:02:53]} 10. Nc3 {[%clk 0:02:58]}  Nbd7 {[%clk 0:02:51]} 11. Rc1 {[%clk 0:02:58]}  Rc8 {[%clk 0:02:50]} 12. Re1 {[%clk 0:02:54]}  Ne4 {[%clk 0:02:45]} 13. Nxe4 {[%clk 0:02:53]}  dxe4 {[%clk 0:02:45]} 14. Nd2 {[%clk 0:02:54]}  cxd4 {[%clk 0:02:43]} 15. Rxc8 {[%clk 0:02:55]}  Qxc8 {[%clk 0:02:42]} 16. Bxd4 {[%clk 0:02:55]}  Bf6 {[%clk 0:02:40]} 17. Nc4 {[%clk 0:02:55]}  Qc6 {[%clk 0:02:33]} 18. Qd2 {[%clk 0:02:42]}  Bxd4 {[%clk 0:02:32]} 19. Qxd4 {[%clk 0:02:43]}  Nc5 {[%clk 0:02:29]} 20. h3 {[%clk 0:02:35]}  Ne6 {[%clk 0:02:27]} 21. Qe5 {[%clk 0:02:34]}  Rd8 {[%clk 0:02:25]} 22. Rc1 {[%clk 0:02:33]}  Qd5 {[%clk 0:02:19]} 23. Qb2 {[%clk 0:02:29]}  Qg5 {[%clk 0:02:13]} 24. Bg4 {[%clk 0:02:18]}  f5 {[%clk 0:02:05]} 25. Qe5 {[%clk 0:02:16]}  fxg4 {[%clk 0:01:48]} 26. Qxe6+ {[%clk 0:02:15]}  Kh8 {[%clk 0:01:48]} 27. Ne5 {[%clk 0:02:14]}  Bd5 {[%clk 0:01:02]} 28. Nf7+ {[%clk 0:01:56]}  Kg8 {[%clk 0:01:01]} 29. Nxg5+ {[%clk 0:01:56]}  Bxe6 {[%clk 0:01:00]} 30. Nxe6 {[%clk 0:01:57]}  Rd2 {[%clk 0:00:58]} 31. hxg4 {[%clk 0:01:54]}  Rxa2 {[%clk 0:00:57]} 32. Rc7 {[%clk 0:01:53]}  g6 {[%clk 0:00:49]} 33. Rg7+ {[%clk 0:01:52]}  Kh8 {[%clk 0:00:48]} 34. Rf7 {[%clk 0:01:53]} 1-0


[Site "https://www.chess.com"]

[Event "Titled Tuesday Blitz June 28 Early 2022"]
[White "Navarrete Mendez, Gonzalo Alberto"]
[Black "Silva, Pedro Gil Ferreira Da"]
[WhiteFideId "5106850"]
[BlackFideId "1946102"]
[WhiteElo "2261"]
[BlackElo "1863"]
[Result "1-0"]
[Round "01"]
[TimeControl "180+1"]
[Date "2022.06.28"]
[WhiteClock "0:00:38"]
[BlackClock "0:00:26"]

1. e4 {[%clk 0:02:58]}  c5 {[%clk 0:03:00]} 2. Nf3 {[%clk 0:02:58]}  d6 {[%clk 0:02:58]} 3. Nc3 {[%clk 0:02:58]}  Nf6 {[%clk 0:02:58]} 4. Bc4 {[%clk 0:02:58]}  a6 {[%clk 0:02:57]} 5. d4 {[%clk 0:02:58]}  cxd4 {[%clk 0:02:57]} 6. Nxd4 {[%clk 0:02:59]}  b5 {[%clk 0:02:56]} 7. Bd5 {[%clk 0:02:59]}  Nxd5 {[%clk 0:02:55]} 8. exd5 {[%clk 0:03:00]}  g6 {[%clk 0:02:54]} 9. O-O {[%clk 0:03:00]}  Bg7 {[%clk 0:02:53]} 10. Re1 {[%clk 0:03:00]}  O-O {[%clk 0:02:53]} 11. Bg5 {[%clk 0:02:59]}  Re8 {[%clk 0:02:53]} 12. Qd2 {[%clk 0:02:56]}  Bb7 {[%clk 0:02:29]} 13. a3 {[%clk 0:02:56]}  Nd7 {[%clk 0:02:26]} 14. Nc6 {[%clk 0:02:49]}  Bxc6 {[%clk 0:02:25]} 15. dxc6 {[%clk 0:02:50]}  Ne5 {[%clk 0:02:25]} 16. Qf4 {[%clk 0:02:11]}  Nxc6 {[%clk 0:02:15]} 17. Nd5 {[%clk 0:02:04]}  Ra7 {[%clk 0:01:54]} 18. c3 {[%clk 0:01:59]}  Ne5 {[%clk 0:01:44]} 19. Rad1 {[%clk 0:01:55]}  Qc8 {[%clk 0:01:32]} 20. h3 {[%clk 0:01:48]}  f6 {[%clk 0:01:22]} 21. Bh6 {[%clk 0:01:33]}  Qc4 {[%clk 0:01:05]} 22. Qe3 {[%clk 0:01:18]}  Qc5 {[%clk 0:00:51]} 23. Qc1 {[%clk 0:01:09]}  e6 {[%clk 0:00:43]} 24. Be3 {[%clk 0:01:07]}  Qc8 {[%clk 0:00:36]} 25. Bxa7 {[%clk 0:01:04]}  exd5 {[%clk 0:00:36]} 26. Qd2 {[%clk 0:00:59]}  Kh8 {[%clk 0:00:31]} 27. Qxd5 {[%clk 0:00:58]}  Nc4 {[%clk 0:00:32]} 28. Qf7 {[%clk 0:00:55]}  Rf8 {[%clk 0:00:30]} 29. Qe7 {[%clk 0:00:48]}  Nxb2 {[%clk 0:00:29]} 30. Rxd6 {[%clk 0:00:42]}  Qxc3 {[%clk 0:00:29]} 31. Rd7 {[%clk 0:00:40]}  Rg8 {[%clk 0:00:30]} 32. Bd4 {[%clk 0:00:39]}  Qc8 {[%clk 0:00:26]} 33. Bxb2 {[%clk 0:00:38]} 1-0


[Site "https://www.chess.com"]

[Event "Titled Tuesday Blitz June 28 Early 2022"]
[White "Pirvulescu, Ekaterina"]
[Black "Priyanka Nutakki"]
[WhiteFideId "13506374"]
[BlackFideId "25049615"]
[WhiteElo "1740"]
[BlackElo "1912"]
[Result "0-1"]
[Round "01"]
[TimeControl "180+1"]
[Date "2022.06.28"]
[WhiteClock "0:01:02"]
[BlackClock "0:01:43"]

1. e4 {[%clk 0:02:59]}  e6 {[%clk 0:02:59]} 2. d4 {[%clk 0:02:58]}  d5 {[%clk 0:02:58]} 3. Nc3 {[%clk 0:02:53]}  Bb4 {[%clk 0:02:56]} 4. e5 {[%clk 0:02:49]}  c5 {[%clk 0:02:56]} 5. Bd2 {[%clk 0:02:48]}  Ne7 {[%clk 0:02:54]} 6. Nb5 {[%clk 0:02:47]}  Bxd2+ {[%clk 0:02:54]} 7. Qxd2 {[%clk 0:02:47]}  O-O {[%clk 0:02:53]} 8. f4 {[%clk 0:02:41]}  Nbc6 {[%clk 0:02:53]} 9. Nf3 {[%clk 0:02:41]}  cxd4 {[%clk 0:02:51]} 10. Nbxd4 {[%clk 0:02:29]}  Bd7 {[%clk 0:02:43]} 11. O-O-O {[%clk 0:02:27]}  Rc8 {[%clk 0:02:40]} 12. Kb1 {[%clk 0:02:27]}  Qb6 {[%clk 0:02:32]} 13. g4 {[%clk 0:02:14]}  Na5 {[%clk 0:02:13]} 14. Nb3 {[%clk 0:02:11]}  Nc4 {[%clk 0:02:09]} 15. Qd4 {[%clk 0:02:03]}  Ne3 {[%clk 0:02:03]} 16. Qxb6 {[%clk 0:01:57]}  axb6 {[%clk 0:02:03]} 17. Rc1 {[%clk 0:01:57]}  Nxg4 {[%clk 0:01:59]} 18. Rg1 {[%clk 0:01:49]}  Nf2 {[%clk 0:01:50]} 19. Nbd4 {[%clk 0:01:32]}  Ng6 {[%clk 0:01:44]} 20. Rg4 {[%clk 0:01:02]}  Nxg4 {[%clk 0:01:43]} 0-1


[Site "https://www.chess.com"]

[Event "Titled Tuesday Blitz June 28 Early 2022"]
[White "Nozdrachev, Leonid"]
[Black "Narayanan.S.L"]
[WhiteFideId "24113433"]
[BlackFideId "5058422"]
[WhiteElo "2129"]
[BlackElo "2494"]
[Result "0-1"]
[Round "01"]
[TimeControl "180+1"]
[Date "2022.06.28"]
[WhiteClock "0:00:01"]
[BlackClock "0:01:10"]

1. e4 {[%clk 0:02:56]}  d5 {[%clk 0:03:00]} 2. exd5 {[%clk 0:02:54]}  Qxd5 {[%clk 0:03:01]} 3. d4 {[%clk 0:02:53]}  Nc6 {[%clk 0:03:00]} 4. Nf3 {[%clk 0:02:50]}  Bg4 {[%clk 0:03:00]} 5. Nc3 {[%clk 0:02:39]}  Qh5 {[%clk 0:02:58]} 6. Be2 {[%clk 0:02:25]}  O-O-O {[%clk 0:02:58]} 7. Be3 {[%clk 0:02:18]}  e5 {[%clk 0:02:56]} 8. d5 {[%clk 0:02:17]}  Nf6 {[%clk 0:02:54]} 9. dxc6 {[%clk 0:02:11]}  Rxd1+ {[%clk 0:02:53]} 10. Rxd1 {[%clk 0:02:12]}  Bb4 {[%clk 0:02:51]} 11. cxb7+ {[%clk 0:02:00]}  Kxb7 {[%clk 0:02:52]} 12. O-O {[%clk 0:02:01]}  Bxc3 {[%clk 0:02:50]} 13. bxc3 {[%clk 0:02:02]}  e4 {[%clk 0:02:50]} 14. h3 {[%clk 0:01:51]}  Bxf3 {[%clk 0:02:37]} 15. gxf3 {[%clk 0:01:44]}  Qxh3 {[%clk 0:02:07]} 16. Rb1+ {[%clk 0:01:37]}  Kc6 {[%clk 0:02:07]} 17. Rfd1 {[%clk 0:01:20]}  Nd5 {[%clk 0:01:45]} 18. Bb5+ {[%clk 0:01:00]}  Kd6 {[%clk 0:01:45]} 19. fxe4 {[%clk 0:00:14]}  Qg4+ {[%clk 0:01:44]} 20. Kf1 {[%clk 0:00:14]}  Qxe4 {[%clk 0:01:45]} 21. c4 {[%clk 0:00:12]}  c6 {[%clk 0:01:46]} 22. Ba6 {[%clk 0:00:08]}  Qh1+ {[%clk 0:01:36]} 23. Ke2 {[%clk 0:00:08]}  Qh5+ {[%clk 0:01:36]} 24. Kf1 {[%clk 0:00:08]}  Re8 {[%clk 0:01:31]} 25. cxd5 {[%clk 0:00:08]}  c5 {[%clk 0:01:32]} 26. Bd3 {[%clk 0:00:03]}  Qf3 {[%clk 0:01:26]} 27. Ke1 {[%clk 0:00:02]}  f5 {[%clk 0:01:17]} 28. Be2 {[%clk 0:00:02]}  Qe4 {[%clk 0:01:12]} 29. Kd2 {[%clk 0:00:02]}  f4 {[%clk 0:01:12]} 30. Bxc5+ {[%clk 0:00:01]}  Kxc5 {[%clk 0:01:11]} 31. Rb3 {[%clk 0:00:01]}  Qxe2+ {[%clk 0:01:10]} 32. Kc1 {[%clk 0:00:01]}  Qxf2 {[%clk 0:01:11]} 33. Rc3+ {[%clk 0:00:01]}  Kd6 {[%clk 0:01:10]} 34. Rc6+ {[%clk 0:00:01]}  Kd7 {[%clk 0:01:11]} 35. Rc3 {[%clk 0:00:01]}  Re1 {[%clk 0:01:10]} 0-1


[Site "https://www.chess.com"]

[Event "Titled Tuesday Blitz June 28 Early 2022"]
[White "Nunez V, Gustavo Eduardo"]
[Black "Tan, Jun Ying"]
[WhiteFideId "4403690"]
[BlackFideId "5710413"]
[WhiteElo "2228"]
[BlackElo "1827"]
[Result "0-1"]
[Round "01"]
[TimeControl "180+1"]
[Date "2022.06.28"]
[WhiteClock "0:00:26"]
[BlackClock "0:00:14"]

1. e4 {[%clk 0:02:57]}  c5 {[%clk 0:02:58]} 2. Nc3 {[%clk 0:02:56]}  Nc6 {[%clk 0:02:58]} 3. g3 {[%clk 0:02:56]}  g6 {[%clk 0:02:58]} 4. Bg2 {[%clk 0:02:56]}  Bg7 {[%clk 0:02:58]} 5. d3 {[%clk 0:02:57]}  d6 {[%clk 0:02:58]} 6. Be3 {[%clk 0:02:57]}  e5 {[%clk 0:02:58]} 7. Nh3 {[%clk 0:02:56]}  Nge7 {[%clk 0:02:58]} 8. f4 {[%clk 0:02:56]}  O-O {[%clk 0:02:56]} 9. O-O {[%clk 0:02:56]}  f5 {[%clk 0:02:56]} 10. a4 {[%clk 0:02:50]}  Nd4 {[%clk 0:02:54]} 11. Qd2 {[%clk 0:02:50]}  Kh8 {[%clk 0:02:52]} 12. Rf2 {[%clk 0:02:49]}  Be6 {[%clk 0:02:51]} 13. Raf1 {[%clk 0:02:47]}  d5 {[%clk 0:02:51]} 14. Ng5 {[%clk 0:02:39]}  Bg8 {[%clk 0:02:50]} 15. exd5 {[%clk 0:02:36]}  Nxd5 {[%clk 0:02:50]} 16. Bxd4 {[%clk 0:02:31]}  exd4 {[%clk 0:02:38]} 17. Nxd5 {[%clk 0:02:31]}  Bxd5 {[%clk 0:02:39]} 18. Qe2 {[%clk 0:02:23]}  Re8 {[%clk 0:02:25]} 19. Bxd5 {[%clk 0:02:20]}  Qxd5 {[%clk 0:02:22]} 20. Qf3 {[%clk 0:02:20]}  Qxf3 {[%clk 0:02:16]} 21. Rxf3 {[%clk 0:02:18]}  h6 {[%clk 0:01:45]} 22. Nf7+ {[%clk 0:02:07]}  Kg8 {[%clk 0:01:46]} 23. Nd6 {[%clk 0:02:07]}  Re7 {[%clk 0:01:44]} 24. R3f2 {[%clk 0:01:59]}  Rd8 {[%clk 0:01:37]} 25. Nc4 {[%clk 0:01:59]}  Kf7 {[%clk 0:01:27]} 26. Rd2 {[%clk 0:01:40]}  Re6 {[%clk 0:01:24]} 27. Kf2 {[%clk 0:01:27]}  Rde8 {[%clk 0:01:19]} 28. h3 {[%clk 0:01:20]}  h5 {[%clk 0:01:10]} 29. Kf3 {[%clk 0:01:16]}  b6 {[%clk 0:01:09]} 30. g4 {[%clk 0:01:05]}  hxg4+ {[%clk 0:00:55]} 31. hxg4 {[%clk 0:01:06]}  fxg4+ {[%clk 0:00:55]} 32. Kxg4 {[%clk 0:01:07]}  Bf6 {[%clk 0:00:41]} 33. Rh1 {[%clk 0:01:02]}  Kg7 {[%clk 0:00:39]} 34. Rdh2 {[%clk 0:00:57]}  Re2 {[%clk 0:00:36]} 35. Rh7+ {[%clk 0:00:56]}  Kg8 {[%clk 0:00:36]} 36. R1h2 {[%clk 0:00:55]}  Rxh2 {[%clk 0:00:35]} 37. Rxh2 {[%clk 0:00:56]}  Kg7 {[%clk 0:00:32]} 38. Nd6 {[%clk 0:00:50]}  Re6 {[%clk 0:00:32]} 39. Ne4 {[%clk 0:00:50]}  Bd8 {[%clk 0:00:28]} 40. b3 {[%clk 0:00:48]}  Re8 {[%clk 0:00:26]} 41. Rg2 {[%clk 0:00:44]}  Rf8 {[%clk 0:00:26]} 42. Re2 {[%clk 0:00:39]}  Bc7 {[%clk 0:00:25]} 43. Rf2 {[%clk 0:00:39]}  Rf5 {[%clk 0:00:24]} 44. Ng5 {[%clk 0:00:38]}  Kf6 {[%clk 0:00:20]} 45. Ne4+ {[%clk 0:00:34]}  Ke6 {[%clk 0:00:20]} 46. Ng3 {[%clk 0:00:34]}  Rf7 {[%clk 0:00:20]} 47. f5+ {[%clk 0:00:24]}  gxf5+ {[%clk 0:00:20]} 48. Nxf5 {[%clk 0:00:21]}  Rf6 {[%clk 0:00:18]} 49. Ng7+ {[%clk 0:00:20]}  Kf7 {[%clk 0:00:18]} 50. Rxf6+ {[%clk 0:00:20]}  Kxf6 {[%clk 0:00:19]} 51. Nf5 {[%clk 0:00:21]}  Ke5 {[%clk 0:00:19]} 52. Ng3 {[%clk 0:00:20]}  Kd5 {[%clk 0:00:18]} 53. Ne4 {[%clk 0:00:20]}  Be5 {[%clk 0:00:17]} 54. Kf5 {[%clk 0:00:21]}  a6 {[%clk 0:00:17]} 55. Ng5 {[%clk 0:00:21]}  b5 {[%clk 0:00:16]} 56. axb5 {[%clk 0:00:21]}  axb5 {[%clk 0:00:17]} 57. Nf7 {[%clk 0:00:22]}  Bc7 {[%clk 0:00:17]} 58. Ng5 {[%clk 0:00:21]}  c4 {[%clk 0:00:16]} 59. Ne6 {[%clk 0:00:20]}  Bd6 {[%clk 0:00:15]} 60. bxc4+ {[%clk 0:00:15]}  bxc4 {[%clk 0:00:15]} 61. Ng5 {[%clk 0:00:15]}  cxd3 {[%clk 0:00:14]} 62. cxd3 {[%clk 0:00:16]}  Bb4 {[%clk 0:00:14]} 63. Ne4 {[%clk 0:00:16]}  Bc3 {[%clk 0:00:14]} 64. Nf6+ {[%clk 0:00:17]}  Kc5 {[%clk 0:00:14]} 65. Ke5 {[%clk 0:00:17]}  Ba1 {[%clk 0:00:14]} 66. Ne4+ {[%clk 0:00:18]}  Kb4 {[%clk 0:00:13]} 67. Kd5 {[%clk 0:00:18]}  Kb3 {[%clk 0:00:14]} 68. Nc5+ {[%clk 0:00:17]}  Kb4 {[%clk 0:00:12]} 69. Ke4 {[%clk 0:00:18]}  Kxc5 {[%clk 0:00:12]} 70. Ke5 {[%clk 0:00:18]}  Bb2 {[%clk 0:00:12]} 71. Ke4 {[%clk 0:00:19]}  Kb4 {[%clk 0:00:12]} 72. Kf3 {[%clk 0:00:19]}  Kc3 {[%clk 0:00:12]} 73. Ke2 {[%clk 0:00:20]}  Ba1 {[%clk 0:00:13]} 74. Kd1 {[%clk 0:00:21]}  Kxd3 {[%clk 0:00:13]} 75. Kc1 {[%clk 0:00:22]}  Bc3 {[%clk 0:00:14]} 76. Kb1 {[%clk 0:00:23]}  Ke2 {[%clk 0:00:14]} 77. Kc1 {[%clk 0:00:24]}  d3 {[%clk 0:00:14]} 78. Kb1 {[%clk 0:00:24]}  d2 {[%clk 0:00:15]} 79. Ka2 {[%clk 0:00:25]}  d1=Q {[%clk 0:00:13]} 80. Ka3 {[%clk 0:00:25]}  Qb1 {[%clk 0:00:13]} 81. Ka4 {[%clk 0:00:26]}  Qb4# {[%clk 0:00:14]} 0-1


[Site "https://www.chess.com"]